Cogmind - Beta 14 @@@ ROGUE MODE // 2024.08.25 @ 21:47:24 Player: Nuclear Winter Man Result: Destroyed by D-53 Grenadier with Mini Grenade Launcher Performance ------------- Evolutions (0) 0 Regions Visited (2) 400 Robots Destroyed (8) 40 Value Destroyed (321) 321 Prototype IDs (0) 0 Alien Tech Used (0) 0 Bonus (21) 21 TOTAL SCORE: 782 Bonus ------- Follower Combat Kills 21 Cogmind --------- Core Integrity 0/250 Matter 275/300 Energy 96/100 System Corruption 0% Temperature Cool (2) Movement Walking (120) Location -10/Mines Parts ------- > --- POWER (1) -------- (None) > --- PROPULSION (2) --- Aluminum Leg Aluminum Leg > --- UTILITY (2) ------ Improved Heat Sink Small Storage Unit > --- WEAPON (2) ------- (None) > --- INVENTORY (8) ---- Ion Engine Light Ion Engine Aluminum Leg Aluminum Leg Wheel Wheel Assault Rifle Peak State ------------ > --- POWER ------------ Light Nuclear Core > --- PROPULSION ------- Aluminum Leg Aluminum Leg > --- UTILITY ---------- Improved Heat Sink Small Storage Unit > --- WEAPON ----------- Small Laser Assault Rifle > --- INVENTORY -------- Ion Engine Light Ion Engine Aluminum Leg Aluminum Leg Wheel Wheel Particle Gun Grenade Launcher [Rating: 11] Favorites ----------- Power Light Nuclear Core Engine Ion Engine Power Core Light Nuclear Core Propulsion Aluminum Leg Leg Aluminum Leg Utility Small Storage Unit Device Heat Sink Storage Small Storage Unit Weapon Small Laser Energy Gun Small Laser Ballistic Gun Assault Rifle Launcher Grenade Launcher Build | -11 -10 -10 ------- Run | Yrd Mat Min Slots Evolved . | . . . Power . | . . . Propulsion . | . . . Utility . | . . . Weapon . | . . . Parts Attached 15 | 5 5 5 Power 3 | 1 1 1 Engine 1 | 1 . . Core 2 | . 1 1 Reactor . | . . . Propulsion 4 | 2 1 1 Treads . | . . . Leg 4 | 2 1 1 Wheel . | . . . Hover . | . . . Flight . | . . . Utility 3 | . 2 1 Device 2 | . 1 1 Storage 1 | . 1 . Processor . | . . . Hackware . | . . . Protection . | . . . Artifact . | . . . Weapon 5 | 2 1 2 Energy Gun 3 | 2 . 1 Energy Cannon . | . . . Ballistic Gun 1 | . 1 . Ballistic Cannon . | . . . Launcher 1 | . . 1 Special Weapon . | . . . Impact Weapon . | . . . Slashing Weapon . | . . . Piercing Weapon . | . . . Special Melee Weapon . | . . . Unidentified Prototypes . | . . . Parts Lost 3 | . . 3 Power 1 | . . 1 Propulsion . | . . . Utility . | . . . Weapon 2 | . . 2 Highest Loss Streak 3 | . . 3 To Critical Strikes . | . . . Average Slot Usage (%) 95 | . 92 100 Engine 2 | . 3 . Core 11 | . 10 14 Leg 28 | . 28 28 Device 10 | . 7 14 Storage 13 | . 13 14 Energy Gun 19 | . 23 14 Ballistic Gun 8 | . 4 13 Peak Build Rating 11 | 5 9 11 Average Rating 8 | 4 7 10 On Entrance 4 | . 5 9 Naked Turns . | . . . Heaviest Build 14 | 8 14 14 Greatest Support 20 | 20 20 20 Greatest Overweight (x) . | . . . Average Overweight (x) . | . . . Largest Inventory Capacity 8 | 5 8 8 Average Capacity 7 | 5 7 8 Most Carried 8 | 5 8 8 Average Carried 6 | 3 7 7 Final Capacity 8 | 5 8 8 Final Carried 8 | 5 8 7 Class Distribution -------------------- 76% | Mutant 23% | Scavenger-Mutant Dominant Class ---------------- Mutant | -10/Materials Scavenger-Mutant | -10/Mines Resources | -11 -10 -10 ----------- Run | Yrd Mat Min Matter Collected 357 | 215 85 57 Remotely . | . . . Salvage Created 352 | . 256 96 Parts 24 | . 18 6 Haulers Intercepted . | . . . Recyclers Shooed 1 | . 1 . Parts Field Recycled . | . . . Retrieved Matter . | . . . Parts Self-Destructed . | . . . Prevented . | . . . Kills | -11 -10 -10 ------- Run | Yrd Mat Min Combat Hostiles Destroyed 8 | . 6 2 Guns 8 | . 6 2 Classes Destroyed 1 | . 1 . Grunt 8 | . 6 2 Best Kill Streak 2 | . 2 2 Combat Bots Only 2 | . 2 2 Max Kills in Single Turn 1 | . 1 1 Gunslinging . | . . . Exploded . | . . . Melee . | . . . Uniques/NPCs Destroyed . | . . . Combat | -11 -10 -10 -------- Run | Yrd Mat Min Hostile Shots Fired 71 | . 40 31 Missed 32 | . 22 10 Damage Taken 766 | . 230 536 Core 253 | . 78 175 Absorbed by Shields . | . . . Core Remaining (%) 100 | 100 . . Volleys Fired 31 | . 23 8 Largest 2 | . 2 2 Hottest 80 | . 80 70 Shots Fired 60 | . 44 16 Gun 58 | . 44 14 Cannon . | . . . Launcher 2 | . . 2 Special . | . . . Kinetic 9 | . 3 6 Thermal 29 | . 21 8 Explosive 2 | . . 2 Electromagnetic 20 | . 20 . Robot Hit Streak 7 | . 7 4 Robot Miss Streak 3 | . 3 2 Penetration Max . | . . . Secondary Targets 1 | . 1 . Max Gunslinging Chain 1 | . 1 . Shots Hit Robots 35 | . 25 10 Core Hits 20 | . 11 9 Critical Kills . | . . . Critical Parts Destroyed . | . . . Critical Strikes . | . . . Melee Attacks . | . . . Impact . | . . . Slashing . | . . . Piercing . | . . . Sneak Attacks . | . . . Combat Hostiles . | . . . Follow-up Attacks . | . . . Damage Inflicted 496 | . 373 123 Guns 408 | . 316 92 Cannons . | . . . Explosions 88 | . 57 31 Melee . | . . . Ramming . | . . . Kinetic 76 | . 27 49 Thermal 213 | . 170 43 Explosive 31 | . . 31 Electromagnetic 176 | . 176 . Impact . | . . . Slashing . | . . . Piercing . | . . . Highest Corruption . | . . . Average Corruption . | . . . Corruption Purged . | . . . Corruption Blocked . | . . . Overload Shots . | . . . Overflow Damage . | . . . Projectiles . | . . . Explosions . | . . . Melee . | . . . Knockbacks . | . . . Impact . | . . . Kinetic . | . . . Secondary . | . . . Self-Inflicted Damage . | . . . Shots . | . . . Rammed . | . . . Targets Rammed . | . . . Kicked . | . . . Crushed . | . . . Highest Temperature 108 | . 108 7 Average Temperature 28 | . 29 3 Received Heat Transfer 246 | . 150 96 Siege Activations . | . . . Robots Corrupted . | . . . Combat Hostiles . | . . . Parts Fried . | . . . Impact Corruptions . | . . . Robots Melted . | . . . Combat Hostiles . | . . . Parts Melted . | . . . Heat Transferred 450 | . 350 100 Parts Sabotaged . | . . . Parts Stolen . | . . . Parts Stripped . | . . . Power Chain Reactions 1 | . 1 . Alert | -11 -10 -10 ------- Run | Yrd Mat Min Peak Influence 213 | . 213 130 Initial 4 | . . 4 Average 60 | . 84 45 Maximum Alert Level 1 | . 1 . Low Security (%) 94 | 100 88 100 Level 1 5 | . 11 . Level 2 . | . . . Level 3 . | . . . Level 4 . | . . . Level 5 . | . . . High Security . | . . . Max Security . | . . . Squads Dispatched 1 | . 1 . Investigation . | . . . Extermination . | . . . Reinforcement 1 | . 1 . Assault . | . . . Garrison . | . . . Intercept . | . . . Searches Triggered . | . . . Construction Impeded . | . . . Haulers Reinforced . | . . . Active Scanning Responses . | . . . Cargo Convoy Interrupts . | . . . Stealth | -11 -10 -10 --------- Run | Yrd Mat Min Distress Signals 3 | . 3 . Communications Jammed . | . . . Distress Signals . | . . . Times Spotted 20 | . 13 7 Peak Tracking Total 5 | . 5 3 Tactical Retreats 2 | . 2 . Traps | -11 -10 -10 ------- Run | Yrd Mat Min Traps Triggered . | . . . Indirectly . | . . . Trap Hack Attempts . | . . . Triggered . | . . . Disarmed . | . . . Reprogrammed . | . . . Reused . | . . . Traps Extracted . | . . . Installed . | . . . Triggered . | . . . Machines | -11 -10 -10 ---------- Run | Yrd Mat Min Machines Disabled 1 | . 1 . Max in Single Turn 1 | . 1 . Machines Repaired . | . . . Machines Dismantled . | . . . Machines Sabotaged . | . . . Overloaded Fab Kills . | . . . Hacking | -11 -10 -10 --------- Run | Yrd Mat Min Machines Accessed . | . . . Terminals . | . . . Fabricators . | . . . Repair Stations . | . . . Recycling Units . | . . . Scanalyzers . | . . . Garrison Access . | . . . Total Hacks . | . . . Successful . | . . . Failed . | . . . Catastrophic . | . . . Database Lockouts . | . . . Manual . | . . . Terminals . | . . . Fabricators . | . . . Repair Stations . | . . . Recycling Units . | . . . Scanalyzers . | . . . Garrison Access . | . . . Terminal Hacks . | . . . Fabricator Hacks . | . . . Repair Station Hacks . | . . . Recycling Unit Hacks . | . . . Scanalyzer . | . . . Garrison Access Hacks . | . . . Unauthorized Hacks . | . . . Terminals . | . . . Fabricators . | . . . Repair Stations . | . . . Recycling Units . | . . . Scanalyzers . | . . . Garrison Access . | . . . Data Cores Recovered . | . . . Used . | . . . Hacking Detections . | . . . Full Trace Events . | . . . Feedback Events . | . . . Feedback Blocked . | . . . Robot Schematics Acquired . | . . . Robots Built . | . . . Authchips . | . . . Time . | . . . Total Robot Build Rating . | . . . Part Schematics Acquired . | . . . Parts Built . | . . . Authchips . | . . . Time . | . . . Total Part Build Rating . | . . . Parts Repaired . | . . . Time . | . . . Parts Recycled . | . . . Recycled Matter . | . . . Retrieved Matter . | . . . Retrieved Components . | . . . Parts Scanalyzed . | . . . Part Schematics Acquired . | . . . Parts Damaged . | . . . Bothacking | -11 -10 -10 ------------ Run | Yrd Mat Min Used RIF Installer . | . . . Robots Hacked . | . . . Non-combat . | . . . Combat . | . . . Robot Hacks Applied . | . . . Relay Couplers Released . | . . . Fabnet Peak Effective % . | . . . Robots Rewired . | . . . Allies Hacked . | . . . Hacks Repelled . | . . . Allies | -11 -10 -10 -------- Run | Yrd Mat Min Total Allies 2 | . . 2 Largest Group 2 | . . 2 Highest-Rated Group 45 | . . 45 Highest-Rated Ally 31 | . . 31 Total Orders . | . . . Ally Attacks 9 | . . 9 Total Damage 109 | . . 109 Kills 3 | . . 3 Allies Corrupted . | . . . Allies Melted . | . . . Intel | -11 -10 -10 ------- Run | Yrd Mat Min Robot Analysis Total . | . . . Derelict Logs Recovered . | . . . Drone Launches . | . . . Drone Recoveries . | . . . Exploration | -11 -10 -10 ------------- Run | Yrd Mat Min Turns Passed 956 | 88 466 402 Spaces Moved 680 | 63 308 309 Core 16 | 16 . . Treads . | . . . Legs 664 | 47 308 309 Wheels . | . . . Hover . | . . . Flight . | . . . Fastest Speed 50 | 50 120 120 Average Speed 118 | 102 120 120 Slowest Speed 120 | 120 120 120 Overloaded Moves . | . . . Propulsion Burnouts . | . . . Robots Hopped . | . . . Cave-ins Triggered . | . . . Exploration Rate (%) 30 | 5 35 50 Regions Visited 2 Branch Regions 1 Pre-discovered Areas . | . . . Known Exits Taken . | . . . Unknown Exits Taken 2 | 1 1 . Scrap Searched . | . . . Spaces Dug . | . . . Terrain Destroyed 17 | . 3 14 Melee . | . . . Projectile . | . . . AOE 17 | . 3 14 Terrain Rammed . | . . . Walls Destroyed . | . . . Machines Disabled . | . . . Actions | -11 -10 -10 --------- Run | Yrd Mat Min Total 776 | 86 363 327 Wait 25 | 10 15 . Move 678 | 62 307 309 Hop . | . . . Pick Up 17 | 9 8 . Fast Attach 2 | 1 1 . Attach 6 | 4 2 . Detach . | . . . Swap 7 | . 2 5 Drop 10 | . 5 5 Fire 31 | . 23 8 Melee . | . . . Ram . | . . . Kick . | . . . Crush . | . . . Escape Stasis . | . . . Rewire . | . . . Trap . | . . . Miscellaneous . | . . . Route ------- -11/Scrapyard -10/Materials -10/Mines (discovered 3 exits: [*Mat x2] / [*Sub]) History --------- Turn | Location | Event 14 | -11/Scrapyard | Discovered new exit (range 16) 89 | -11/Scrapyard | Entered Materials 316 | -10/Materials | Build established: Mutant 363 | -10/Materials | Discovered new exit (range 12) 555 | -10/Materials | Entered Mines 557 | -10/Mines | Met a Derelict bent on vengeance 766 | -10/Mines | Discovered new exit (range 15) 768 | -10/Mines | Discovered new exit (range 10) 879 | -10/Mines | Discovered new exit (range 8) 917 | -10/Mines | Assembled infested the area 952 | -10/Mines | Core integrity fell below 50% 957 | -10/Mines | Destroyed by D-53 Grenadier with Mini Grenade Launcher Last Messages --------------- Acquired 10 matter. Dropped Sml. Laser. Dropped Particle Gun. EXIT=FOUND T-07 Excavator is excavating. A pair of derelicts emerge from the shadows: "We're, um, lost. You wouldn't happen to know the way out of here, would you?" T-07 Excavator is excavating. EXIT=FOUND T-07 Excavator is excavating. ALERT: Infestation in the mines, dispatching Demolisher response squad. C-30 ARC bursts open, deploying its payload. D-53 Grenadier unfolds itself. 09-GB7(z) destroyed. Lgt. Nuclear Core destroyed. The unstable cave ceiling collapses. Grenade Launcher destroyed. Sml. Laser destroyed. The unstable cave ceiling collapses. D-53 Grenadier suffers critical hit (Burn). Map ----- +----------------------------------------------------+ | ?????????????????????????????????????????????????? | | ?????????????????????????????????????????????????? | | ?????????????????????????????????????????????????? | | ?????????????????????????????????????????????????? | | ?????????????????????????????????????????????????? | | ?????????????????????????????????????????????????? | | ?????????????????????????????????????????????????? | | ?????????????????????????????????????????????????? | | ????????????????????? ???????????????????????????? | | ????????????????????? ???????????????????????????? | | ???????? ?????????? ???????????????????????????? | | ???????? ?????????? ###????????????????????????? | | ???????? ??????????? #????????????????????????? | | ???????? ??????????? ????????????##??????????? | | ???????? ?????????###$ ??????????? #??????????? | | ?????### ?????????# ????????? ???????????? | | ?????? ?????????## ???????? """ ???????????? | | ?????? ?????????# % ???#### """ #??????????? | | ?????? ????????### #### = """ #??????????? | | ?????? ????????# # # ## % %[ #??????????? | | ?????? ?????## # # g =""" #??????????? | | ?????? ?????# = """????????????? | | ??????# #????### d "??????????????? | | ????### #????# %d #?????????????????? | | ????? #??????# #?????????????????? | | ??????# #??????# @ # #????????????????? | | ??????# ######## # #????????????????? | | ??????# #?## ###????????????????? | | ????### ##########??####### ##??????????????????? | | ????# #??????????????????###???????????????????? | | ????# #????????????????????????????????????????? | | ????# #????????????????????????????????????????? | | ##### #????????????????????????????????????????? | | # ###??????????????????????????????????????? | | ##?????????????????????????????????????? | | # ##????????????????????????????????????? | | # # ##???????????????????????????????????? | | #### #??????????????#????????????????????? | | ???# ## ##????????????? ???????????????????? | | ???# ###?# ##???????????? #???????????????????? | | #### #????# #???????????# #????????????######## | | #????# ??????????# #????????????# | | #### ##???# # ???????? #?####???????# #### | | #??# #???# #### ????????# ?? #???????# #??# ? | | #??### #???# #????????##### #??# #???????# #??# | | #???## ##??# #????????? #?## ##??????# #??# | | ##### ##?# #?????????? ### ##?????# #??# | | ### ##??????????# ## ##????# #??# | | ##?????????# ## ###### #### | | ### #????????## ## | +----------------------------------------------------+ Best States ------------- Heat Dissipation 39 Energy Generation 14 Energy Capacity 250 Matter Stores 300 Matter Capacity 300 Sight Range 16 Terrain Scan Density 10 Evasion (%) 55 Item Schematics ----------------- None Robot Schematics ------------------ None Fabricated ------------ Nothing Alien Tech Used ----------------- None Achievements -------------- None Challenges ------------ None Game ------ Seed RocketEnergyNanoactuators Manual? 0 Play Time 00:11:55 Cumulative 2.5 hours Start 2024.08.24 @ 20:33:20 End 2024.08.25 @ 21:47:24 Sessions 2 Manual Loads 0 Difficulty Rogue Special Mode None Game No. 8 Rogue 8 Adventurer 0 Explorer 0 Win Type - Total 0 Types 0/0/0/0/0/0/0/0/0 Lore% 2 Gallery% 5 Achievement% 5 Wizard Run 0 Options --------- Layout 0 ASCII 0 Keyboard 0 Movement Arrows Keybinds 0 Fullscreen 1 Font 18/SmallcapsGlow Map View 76x50 Zoom Use 0% Tactical HUD 0 Map Filters NONE Filters NONE Steam 1 RUN: 34ea2754-dcb0-480a-91da-6423d3ccfa0f